bitfinex-derivatives/quotes_SOLF0:USTF0_20250228
["timestamp","ask_amount","ask_price","bid_price","bid_amount"]
[1740731659321,23.08,130.73,130.55,1.53198008]
[1740731659522,214.46087595,130.72,130.55,1.53198008]
[1740731659726,0.05108869,130.67,130.64,0.05323953]
[1740731660029,0.05108869,130.67,130.55,140.88142263]
[1740731660225,0.05108869,130.67,130.64,0.04851987]
[1740731660429,190.0,130.74,130.55,1.53198008]
[1740731660630,0.05777936,130.62,130.55,1.53198008]
[1740731660834,1.38066083,130.72,130.59,7.6656]
[1740731661027,190.0,130.73,130.55,1.53198008]
[1740731661332,0.0582831,130.67,130.64,0.05319414]
[1740731661630,1.38087807,130.72,130.55,1.53198008]
[1740731661832,0.05051635,130.67,130.64,0.04957932]
[1740731662231,0.05051635,130.67,130.55,140.88142263]
[1740731662424,0.05051635,130.67,130.64,0.04842691]
[1740731662622,190.3708,130.77,130.55,140.88142263]
[1740731662825,0.05524528,130.67,130.64,0.05229932]
[1740731663226,1.38050614,130.76,130.55,140.88142263]
[1740731663423,7.6621,130.66,130.64,0.05870216]
[1740731663632,0.05068129,130.67,130.64,0.05870216]
[1740731663934,7.662,130.66,130.64,0.05505568]
[1740731664130,0.05890017,130.67,130.64,0.05505568]
[1740731664330,0.05890017,130.67,130.64,0.00495568]
[1740731664536,3.87890017,130.67,130.54,3.9225]
[1740731664832,0.3754,130.66,130.54,3.9225]
[1740731665730,0.0499861,130.61,130.59,0.0530344]
[1740731666133,0.3754,130.66,130.59,0.0530344]
[1740731666334,0.05636971,130.61,130.59,0.0530344]
[1740731666531,0.3754,130.66,130.59,0.0530344]
[1740731666734,0.05894737,130.61,130.59,0.0530344]
[1740731666937,0.3754,130.66,130.59,0.0530344]
[1740731667238,0.3754,130.66,130.54,3.9225]
[1740731667439,0.3754,130.66,130.46,139.34944255]
[1740731667636,0.3754,130.66,130.47,11.1627]
[1740731668037,23.08,130.64,130.47,11.1627]
[1740731668237,0.3754,130.66,130.47,11.1627]
[1740731668238,23.08,130.62,130.47,11.1627]
[1740731668441,0.04933568,130.57,130.54,0.04908548]
[1740731668635,7.6717,130.49,130.47,11.1627]
[1740731669129,0.3858,130.59,130.47,7.4073]
[1740731669335,1.38254785,130.58,130.47,7.4073]
[1740731669537,23.08,130.57,130.47,7.4073]
[1740731669733,23.08,130.57,130.43,33.86769976]
[1740731669937,0.05170139,130.53,130.51,4.083e-05]
[1740731670337,23.08,130.52,130.43,30.13119976]
[1740731670832,23.08,130.5,130.43,29.70799976]
[1740731671037,30.6501,130.69,130.32,19.298]
[1740731671038,23.08,130.48,130.32,19.298]
[1740731671235,1.38318298,130.47,130.32,11.6169]
[1740731671439,190.0,130.49,130.32,11.6169]
[1740731671638,0.0567614,130.41,130.38,0.04918631]
[1740731672035,1.38364578,130.48,130.32,11.6169]
[1740731672242,0.05063769,130.41,130.38,0.05652045]
[1740731672633,23.08,130.46,130.32,11.6169]
[1740731672836,0.05216068,130.41,130.32,11.6169]
[1740731673036,190.0,130.44,130.38,0.05599986]
[1740731673235,0.04987646,130.38,130.31,3.44959976]
[1740731673439,0.04987646,130.38,130.28,3.8675]
[1740731673636,190.0,130.43,130.28,3.8675]
[1740731673832,0.05339881,130.36,130.33,0.05494731]
[1740731674140,190.0,130.5,130.28,3.8675]
[1740731674440,191.38386678,130.49,130.28,3.8675]
[1740731674740,7.676,130.42,130.32,7.6811]
[1740731674942,190.0,130.49,130.28,3.8675]
[1740731675240,0.05348097,130.4,130.37,0.05395922]
[1740731675635,1.38387229,130.47,130.28,3.8675]
[1740731675831,1.38377416,130.46,130.28,143.21694255]
[1740731676039,0.049246,130.4,130.37,0.05396849]
[1740731676446,7.6783,130.38,130.28,3.8675]
[1740731676741,7.6783,130.38,130.37,0.05741648]
[1740731676943,3.84,130.38,130.28,3.8675]
[1740731677143,190.0,130.45,130.28,3.8675]
[1740731677345,191.38442967,130.44,130.28,3.8675]
[1740731677542,7.679,130.37,130.28,11.5512]
[1740731677745,190.0,130.43,130.26,7.6694]
[1740731678043,0.05861758,130.36,130.33,0.05428909]
[1740731678240,0.05861758,130.36,130.26,7.6694]
[1740731678439,1.38437411,130.41,130.26,7.6694]
[1740731678645,7.6823,130.31,130.26,4.0129]
[1740731678841,213.08,130.38,130.16,3.7436]
[1740731679047,23.08,130.36,130.17,4.0115]
[1740731679246,1.38497622,130.35,130.19,7.689]
[1740731679446,0.05693682,130.28,130.25,0.05262038]
[1740731679845,0.05693682,130.28,130.17,8.0456]
[1740731679846,1.38497622,130.33,130.17,8.0456]
[1740731680042,0.04942372,130.28,130.25,0.04897048]
[1740731680242,0.04942372,130.28,130.17,8.0456]
[1740731680438,7.6856,130.26,130.25,0.05336007]
[1740731680637,190.0,130.32,130.25,0.05336007]
[1740731680840,0.04913815,130.27,130.17,8.0456]
[1740731681041,1.38549697,130.3,130.17,15.7361]
[1740731681237,0.05361627,130.23,130.21,0.05228604]
[1740731681645,1.38549697,130.3,130.08,80.6894988]
[1740731681844,0.04952087,130.23,130.21,0.0526356]
[1740731682147,23.08,130.28,130.21,0.05845354]
[1740731682445,23.08,130.26,130.1,7.6945]
[1740731682643,191.3858539,130.25,130.1,7.6945]
[1740731682843,7.6887,130.21,130.1,7.6945]
[1740731683243,190.0,130.24,130.09,11.5089]
[1740731683444,0.04976716,130.17,130.14,0.04998414]
[1740731683645,190.0,130.29,130.14,0.04998414]
[1740731683842,1.38567133,130.28,130.09,11.5089]
[1740731684048,1.38567133,130.28,130.09,7.6281]
[1740731684349,190.0,130.29,130.1,1.53727901]
[1740731685053,0.0501099,130.21,130.18,0.05463419]
[1740731685245,190.0,130.35,130.18,0.05463419]
[1740731685441,7.6857,130.26,130.15,7.6912]
[1740731685650,23.08,130.32,130.1,140.88672156]
[1740731685851,191.38547313,130.31,130.1,1.53727901]
[1740731686051,1.38547313,130.3,130.1,1.53727901]
[1740731686444,4.309e-05,130.21,130.19,0.05671866]
[1740731686654,1.38529471,130.35,130.19,139.40616121]
[1740731686849,190.0,130.42,130.2,7.5671]
[1740731687049,1.38457111,130.41,130.2,7.5671]
[1740731687246,190.0,130.42,130.2,7.5671]
[1740731687649,7.6781,130.39,130.2,7.5671]
[1740731687853,190.0,130.42,130.2,7.5671]
[1740731688156,0.0511858,130.32,130.3,0.05804958]
[1740731688555,23.08,130.41,130.2,146.91654255]
[1740731688757,0.05164408,130.32,130.3,0.05679015]
[1740731689159,7.6782,130.38,130.2,146.91654255]
[1740731689356,0.05455376,130.32,130.3,0.04844611]
[1740731689754,213.08,130.4,130.26,7.6847]
[1740731689755,7.6789,130.37,130.26,7.6847]
[1740731689954,0.05803987,130.32,130.3,0.05382641]
[1740731690152,213.08,130.4,130.3,0.05382641]
[1740731690359,23.08,130.38,130.21,3.8173]
[1740731690566,0.05773743,130.32,130.21,143.16674255]
[1740731690859,23.08,130.38,130.22,3.6435]
[1740731691160,1.38470909,130.37,130.21,3.8173]
[1740731691362,7.6842,130.28,130.21,3.8173]
[1740731691861,23.08,130.35,130.23,0.05263295]
[1740731692161,0.05343998,130.26,130.21,3.8173]
[1740731692360,213.08,130.36,130.28,0.05217797]
[1740731692660,213.08,130.36,130.21,3.8173]
[1740731692853,0.05104603,130.33,130.21,3.8173]
[1740731693054,1.38490934,130.35,130.21,3.8173]
[1740731693456,213.08,130.36,130.21,3.8173]
[1740731693655,7.6827,130.31,130.22,7.6871]
[1740731693855,213.08,130.36,130.21,3.8173]
[1740731694055,0.05366193,130.28,130.25,0.05368357]
[1740731694455,190.0,130.43,130.21,3.8173]
[1740731694666,0.04986016,130.28,130.25,0.05197557]
[1740731694955,0.05216328,130.28,130.25,0.0575588]
[1740731695755,7.73666328,130.28,130.25,0.0575588]
[1740731696365,0.05216328,130.28,130.25,0.0575588]
[1740731697872,7.6878,130.22,130.15,7.6913]
[1740731698164,7.6878,130.22,130.02,15.3978]
[1740731698165,213.08,130.29,130.11,11.4078]
[1740731698364,7.6892,130.2,130.13,7.6928]
[1740731698568,213.08,130.28,130.11,11.4078]
[1740731698861,7.6905,130.17,130.11,19.1019]
[1740731699061,0.05555824,130.21,130.18,5.511e-05]
[1740731699266,190.0,130.25,130.1,1.53727901]
[1740731699267,23.08,130.22,130.1,1.53727901]
[1740731699463,213.08,130.21,130.1,1.53727901]
[1740731699861,190.0,130.21,130.1,1.53727901]
[1740731700468,7.6917,130.15,130.14,0.05582161]
[1740731700666,0.04964422,130.17,130.14,0.05582161]
[1740731700869,24.46626696,130.3,130.1,1.53727901]
[1740731701163,0.05739389,130.17,130.1,1.53727901]
[1740731701363,23.08,130.26,130.19,7.198e-05]
[1740731701569,7.6949,130.1,130.03,11.4562]
[1740731701870,23.08,130.19,130.03,11.4562]
[1740731702071,213.08,130.18,130.03,11.4562]
[1740731702272,23.08,130.16,130.03,7.7035]
[1740731702474,23.08,130.14,130.03,7.7035]
[1740731702768,23.08,130.14,130.03,3.7996]
[1740731702769,0.05817068,130.11,130.03,3.7996]
[1740731702972,0.05817068,130.11,129.92,4.0068]
[1740731703160,1.38667425,130.12,130.07,0.04906039]
[1740731703361,0.05165483,130.03,129.92,7.8368]
[1740731703571,190.0,130.23,129.92,11.6768]
[1740731703761,190.0,130.22,130.08,0.05417458]
[1740731704271,1.38648789,130.21,129.93,1.38439769]
[1740731704471,1.38648789,130.21,129.94,1.53917192]
[1740731704674,1.38648789,130.21,130.06,0.05708762]
[1740731704873,1.3861424,130.25,130.06,139.40653017]
[1740731705171,92.97363702,130.26,130.07,7.7969]
[1740731705371,1.38606978,130.25,130.07,147.14634255]
[1740731705764,92.97363702,130.26,130.15,0.05217624]
[1740731705965,0.04920447,130.17,130.07,147.14634255]
[1740731706169,92.97363702,130.26,130.08,1.53751537]
[1740731706373,0.05886046,130.22,130.19,0.05121384]
[1740731706570,190.0,130.32,130.08,140.88695792]
[1740731707370,1.38540553,130.31,130.08,140.88695792]
[1740731707871,0.05569917,130.21,130.18,0.05346731]
[1740731708174,1.38540553,130.31,130.08,140.88695792]
[1740731708375,0.70290737,130.35,130.08,140.88695792]
[1740731708677,191.38547283,130.34,130.08,140.88695792]
[1740731708981,190.0,130.39,130.08,140.88695792]
[1740731709272,1.38480397,130.38,130.2,0.0523453]
[1740731709575,190.0,130.46,130.32,7.6817]
[1740731709873,1.38433147,130.45,130.21,148.89432288]
[1740731710078,1.38433147,130.45,130.22,1.53586238]
[1740731710575,0.05693711,130.35,130.24,7.6859]
[1740731710773,0.05693711,130.35,130.32,0.05840183]
[1740731710970,7.6828,130.31,130.24,7.6859]
[1740731711574,7.7403318,130.29,130.26,0.04967149]
[1740731711976,213.08,130.42,130.22,1.53586238]
[1740731712179,0.05817907,130.29,130.26,0.05155]
[1740731712382,191.38490298,130.4,130.21,8.0089]
[1740731712574,0.05734136,130.29,130.26,0.05808815]
[1740731712878,1.38490298,130.38,130.21,8.0089]
[1740731713080,7.73860793,130.29,130.26,0.05753514]
[1740731713382,190.0,130.39,130.21,8.0089]
[1740731713679,0.05216635,130.29,130.26,0.05173125]
[1740731713880,0.05216635,130.29,130.21,8.0089]
[1740731714078,191.38477316,130.38,130.26,0.05368583]
[1740731714279,7.6846,130.27,130.26,0.05368583]
[1740731714478,0.0513363,130.33,130.21,8.0089]
[1740731714679,1.38511443,130.36,130.25,0.05219437]
[1740731714977,1.38511443,130.36,130.21,8.0089]
[1740731715178,0.05696554,130.32,130.21,8.0089]
[1740731715382,7.6857,130.26,130.21,8.0089]
[1740731715579,190.0,130.37,130.21,3.9669]
[1740731715781,191.58533781,130.36,130.21,3.9669]
[1740731715979,1.38513781,130.35,130.16,3.6596]
[1740731716178,190.0,130.34,130.17,3.8731]
[1740731716373,0.05870824,130.27,130.24,0.05136404]
[1740731716779,1.38513781,130.33,130.17,3.8731]
[1740731716975,0.04998074,130.27,130.24,5.401e-05]
[1740731717274,190.0,130.26,130.1,34.15037292]
[1740731717480,190.0,130.3,130.1,173.49981547]
[1740731717676,7.6862,130.25,130.18,7.6898]
[1740731717989,190.2002,130.36,130.19,3.8992]
[1740731718282,0.04862352,130.23,130.22,7.6876]
[1740731718482,1.38511433,130.35,130.2,7.8531]
[1740731718680,6.169e-05,130.24,130.23,7.687]
[1740731718877,190.199,130.43,130.2,147.20254255]
[1740731719072,191.3844458,130.42,130.2,147.20254255]
[1740731719277,7.6786,130.38,130.2,147.20254255]
[1740731719473,190.0,130.41,130.2,147.20254255]
[1740731719780,191.38476371,130.4,130.2,7.8531]
[1740731720081,0.04890726,130.32,130.29,0.05518129]
[1740731720483,1.38476371,130.38,130.2,7.8531]
[1740731720684,0.05027333,130.32,130.29,0.05281266]
[1740731721083,190.0,130.4,130.2,147.20254255]
[1740731721279,190.0,130.4,130.29,0.05512416]
[1740731721280,0.05341005,130.32,130.29,0.05512416]
[1740731721478,1.38471685,130.39,130.2,147.20254255]
[1740731721881,0.05572871,130.32,130.29,0.05246373]
[1740731722085,24.43471685,130.39,130.2,147.20254255]
[1740731722287,1.38471685,130.38,130.2,147.20254255]
[1740731722583,0.05758381,130.32,130.29,5.205e-05]
[1740731722982,3.84,130.32,130.2,7.8531]
[1740731723179,191.38533584,130.31,130.19,3.8992]
[1740731723384,190.0,130.31,130.19,3.8992]
[1740731723584,23.05,130.38,130.19,3.8992]
[1740731723789,1.385013,130.37,130.19,143.24864255]
[1740731724087,1.385013,130.39,130.24,0.0532512]
[1740731724284,0.2047,130.4,130.19,143.24864255]
[1740731724485,213.05,130.44,130.2,1.53609831]
[1740731724788,191.38426784,130.43,130.2,140.88554086]
[1740731724991,1.38426784,130.42,130.21,3.9525]
[1740731725183,0.05595601,130.33,130.3,0.05712564]
[1740731725378,190.0,130.43,130.3,0.05712564]
[1740731725582,7.678,130.39,130.33,7.681]
[1740731725785,190.0,130.43,130.33,7.681]
[1740731726093,7.678,130.39,130.33,7.6807]
[1740731726478,0.05320337,130.37,130.35,0.04963497]
[1740731726884,0.0839,130.44,130.21,143.30194255]
[1740731727079,0.04905718,130.37,130.35,0.04935096]
[1740731727284,1.38399293,130.43,130.23,3.8652]
[1740731727484,0.0839,130.44,130.23,143.21464255]
[1740731727680,0.05129598,130.37,130.35,0.04876984]
[1740731727985,23.05,130.41,130.23,3.8652]
[1740731728192,23.05,130.39,130.23,3.8652]
[1740731728488,23.05,130.39,130.23,11.5521]
[1740731728489,1.38409252,130.38,130.23,11.5521]
[1740731729190,0.05713831,130.32,130.29,0.05448063]
[1740731729585,1.38479589,130.36,130.23,3.8652]
[1740731729784,0.05717837,130.32,130.21,3.9525]
[1740731730193,190.0,130.35,130.21,3.9525]
[1740731730691,7.6833,130.3,130.22,7.6871]
[1740731730991,190.0,130.35,130.21,3.9525]
[1740731731198,0.05424305,130.27,130.25,0.0545924]
[1740731731585,190.0,130.35,130.21,3.9525]
[1740731731785,51.0,130.41,130.21,3.9525]
[1740731731786,190.0,130.4,130.21,3.9525]
[1740731731991,23.05,130.38,130.21,3.9525]
[1740731732187,1.38479467,130.37,130.21,3.9525]
[1740731732390,1.38479467,130.38,130.21,3.9525]
[1740731732589,1.38474783,130.37,130.21,143.30194255]
[1740731732890,7.676,130.42,130.28,0.05700604]
[1740731733096,0.0829,130.48,130.28,139.40644859]
[1740731733392,1.38381074,130.47,130.29,7.9607]
[1740731734183,0.05291525,130.39,130.29,7.9607]
[1740731734584,191.38381074,130.45,130.29,7.9607]
[1740731734791,1.38381074,130.44,130.19,139.34944255]
[1740731734996,190.0,130.43,130.2,7.7876]
[1740731735191,1.38442426,130.42,130.2,7.7876]
[1740731735386,1.38442426,130.42,130.2,147.13704255]
[1740731735587,1.38442426,130.42,130.32,7.6817]
[1740731735588,0.05328675,130.33,130.32,7.6817]
[1740731735893,84.77323369,130.48,130.31,3.9924]
[1740731736089,7.6783,130.38,130.31,3.9924]
[1740731736393,190.0,130.46,130.31,3.9924]
[1740731736591,7.6798,130.36,130.31,3.9924]
[1740731736794,190.0,130.44,130.22,3.8707]
[1740731737098,0.0829,130.48,130.32,0.05472303]
[1740731737099,0.05508849,130.35,130.32,0.05472303]
[1740731737393,191.38435719,130.42,130.23,3.9924]
[1740731737592,191.59795719,130.41,130.23,3.9924]
[1740731737800,7.6803,130.35,130.27,7.6841]
[1740731738093,0.079,130.4,130.23,3.9924]
[1740731738493,0.0512103,130.33,130.3,0.05003783]
[1740731738995,0.079,130.4,130.3,0.05486991]
[1740731739197,0.053162,130.33,130.3,0.05486991]
[1740731739395,7.6794,130.36,130.29,7.683]
[1740731739591,0.0512522,130.33,130.3,0.05623866]
[1740731740197,0.0512522,130.33,130.3,7.73883866]
[1740731740595,0.0512522,130.33,130.3,0.05623866]
[1740731741694,0.0512522,130.33,130.31,7.6821]
[1740731741991,190.0,130.45,130.3,0.05623866]
[1740731742296,7.6774,130.4,130.23,143.34184255]
[1740731742497,0.0906,130.46,130.23,143.34184255]
[1740731742997,0.0906,130.46,130.24,1.53562653]
[1740731743195,0.0906,130.46,130.24,140.88506908]
[1740731743396,0.0906,130.46,130.33,0.0544253]
[1740731743594,190.0,130.49,130.33,0.0544253]
[1740731743795,0.05319756,130.36,130.24,140.88506908]
[1740731743993,1.38361165,130.47,130.24,140.88506908]
[1740731744193,1.38361165,130.47,130.4,0.05803769]
[1740731744394,1.38361165,130.47,130.24,140.88506908]
[1740731745199,0.05444265,130.37,130.34,0.05454314]
[1740731745599,1.38361165,130.45,130.24,140.88506908]
[1740731746099,0.05523292,130.37,130.34,0.05899346]
[1740731746398,7.6797,130.36,130.34,0.05899346]
[1740731746599,213.05,130.46,130.24,140.88506908]
[1740731746798,0.05217729,130.36,130.34,0.05823597]
[1740731746998,7.6799,130.35,130.34,0.05823597]
[1740731747194,213.05,130.45,130.24,1.53562653]
[1740731747399,214.43405992,130.44,130.33,0.05543696]
[1740731747593,0.05006639,130.36,130.33,0.05543696]
[1740731747794,190.0,130.43,130.24,1.53562653]
[1740731747999,0.05142803,130.36,130.35,7.6799]
[1740731748289,23.05,130.46,130.34,7.586]
[1740731748491,7.6799,130.35,130.34,7.586]
[1740731748703,7.6799,130.35,130.31,7.6821]
[1740731748888,23.05,130.43,130.31,7.6821]
[1740731749093,1.38416089,130.42,130.25,7.586]
[1740731749500,0.04912427,130.38,130.36,0.05677416]
[1740731749695,1.38416089,130.42,130.31,7.6821]
[1740731750101,0.04868179,130.38,130.36,0.05271877]
[1740731750298,0.04868179,130.38,130.25,7.586]
[1740731750498,23.05,130.43,130.25,7.586]
[1740731750703,7.6809,130.34,130.25,7.586]
[1740731751299,7.6809,130.34,130.29,7.683]
[1740731751701,0.05735531,130.31,130.29,7.683]
[1740731751996,0.05735531,130.31,130.28,0.05500391]
[1740731752598,7.6828,130.3,130.28,0.05500391]
[1740731752792,0.05735531,130.31,130.28,0.05500391]
[1740731754399,7.6833,130.3,130.28,0.05500391]
[1740731754605,0.05735531,130.31,130.28,0.05500391]
[1740731755501,7.6834,130.29,130.28,0.05500391]
[1740731756197,7.6862,130.25,130.16,11.7265]
[1740731756397,0.05735531,130.31,130.19,7.6891]
[1740731756603,23.05,130.33,130.19,7.6891]
[1740731756900,23.05,130.31,130.16,11.7265]
[1740731757103,1.38506147,130.3,130.16,3.887]
[1740731757305,1.38506147,130.3,130.14,30.25117292]
[1740731757504,0.05193871,130.24,130.22,0.04850442]
[1740731757703,0.05193871,130.24,130.14,30.25117292]
[1740731758111,190.0,130.23,130.14,30.25117292]
[1740731758302,214.43580064,130.22,130.14,18.35087292]
[1740731758614,1.3868028,130.21,130.14,7.292e-05]
[1740731758903,0.0564897,130.19,130.14,7.292e-05]
[1740731759108,7.6917,130.15,130.14,7.292e-05]
[1740731759502,11.5317,130.15,129.99,92.2982988]
[1740731759703,7.6917,130.15,130.03,7.6982]
[1740731759906,190.0,130.18,129.99,92.2982988]
[1740731760106,190.0,130.17,129.99,92.2982988]
[1740731760408,0.05477017,130.1,130.08,0.0572518]
[1740731760902,190.0,130.17,129.99,92.2982988]
[1740731761100,0.05468068,130.1,130.08,0.0575474]
[1740731761510,23.05,130.19,129.99,92.2982988]
[1740731761809,0.05398061,130.1,130.08,0.05348156]
[1740731762213,1.3870305,130.27,129.99,92.2982988]
[1740731762407,1.53539075,130.26,129.99,92.2982988]
[1740731762610,0.04922776,130.1,130.08,0.05372616]
[1740731762805,191.3870305,130.21,130.08,0.05372616]
[1740731763006,191.3870305,130.21,129.99,11.6088]
[1740731763007,190.0,130.21,129.99,11.6088]
[1740731763516,190.0,130.21,130.12,7.693]
[1740731763810,190.0,130.21,130.0,1.53846153]
[1740731764107,190.0,130.27,130.0,1.53846153]
[1740731764308,9.464e-05,130.18,130.15,0.05770419]
[1740731764709,31.7136512,130.28,130.02,23.05]
[1740731764909,190.0,130.32,130.03,1.53810659]
[1740731765214,190.0,130.32,130.22,7.6875]
[1740731765408,190.0,130.32,130.04,139.34944255]
[1740731765610,5.549e-05,130.18,130.17,7.6905]
[1740731766018,16.29261511,130.29,130.16,7.6369]
[1740731766314,16.29261511,130.29,130.05,1.53787004]
[1740731766315,213.05,130.28,130.05,1.53787004]
[1740731766612,30.737,130.23,130.06,7.6369]
[1740731766813,190.0,130.22,130.06,7.6369]
[1740731767005,0.04967568,130.18,130.15,0.05885378]
[1740731767210,213.05,130.22,130.06,7.6369]
[1740731767415,23.05,130.2,130.06,7.6369]
[1740731768109,190.0,130.21,130.06,7.6369]
[1740731768313,190.0,130.21,130.07,3.7367]
[1740731768616,0.0556355,130.14,130.12,0.04966468]
[1740731769014,190.0,130.21,130.07,3.7367]
[1740731769211,0.04966081,130.14,130.12,0.0487893]
[1740731769521,190.0,130.21,130.07,3.7367]
[1740731769715,191.38665671,130.2,129.89,15.4135]
[1740731769915,0.05073768,130.14,129.9,14.57110775]
[1740731770114,190.0,130.13,129.9,13.18334588]
[1740731770318,23.05,130.24,129.9,13.18334588]
[1740731770520,23.05,130.22,129.9,13.18334588]
[1740731770719,1.38716136,130.21,129.9,13.18334588]
[1740731771012,23.05,130.14,129.9,13.18334588]
[1740731771218,0.05715449,130.07,129.9,13.18334588]
[1740731771414,23.05,130.09,129.9,13.18334588]
[1740731771613,23.05,130.07,129.9,13.18334588]
[1740731771807,190.0,130.06,129.9,11.6437]
[1740731772214,213.05,130.06,129.9,11.6437]
[1740731772520,0.05756347,129.99,129.97,0.05802385]
[1740731772913,7.6987,130.04,129.9,19.3502]
[1740731773114,0.04885852,129.99,129.97,0.05659349]
[1740731773510,190.0,130.05,129.9,11.6437]
[1740731773712,0.05832045,129.99,129.97,0.05369032]
[1740731774113,7.6999,130.02,129.9,11.6437]
[1740731774419,0.05682243,129.99,129.97,0.05311229]
[1740731774815,7.7013,129.99,129.97,0.05311229]
[1740731775020,7.7547231,129.99,129.86,7.7088]
[1740731775324,190.0,130.03,129.86,3.8315]
[1740731775521,23.05,130.09,129.86,3.8315]
[1740731775723,7.6976,130.05,129.86,3.8315]
[1740731775920,190.0,130.07,129.86,3.8315]
[1740731776125,190.0,130.17,129.94,0.05860506]
[1740731776421,243.92452089,130.16,129.86,1.54012012]
[1740731776723,23.05,130.14,129.87,3.8315]
[1740731776920,7.6984,130.04,129.87,3.8315]
[1740731777121,190.0,130.12,129.87,3.8315]
[1740731777429,0.05560642,129.97,129.94,0.05087548]
[1740731777723,191.38785998,130.1,129.87,3.8315]
[1740731777924,1.38785998,130.09,129.87,3.8315]
[1740731778119,190.0,130.1,129.88,1.53988296]
[1740731778318,7.6965,130.07,129.88,1.53988296]
[1740731778515,190.0,130.1,129.88,1.53988296]
[1740731778924,0.05594841,130.0,129.98,0.04855253]
[1740731779123,190.0,130.13,129.98,0.04855253]
[1740731779324,190.0,130.13,129.88,1.53988296]
[1740731779820,1.38737623,130.12,129.88,1.53988296]
[1740731780323,1.38737623,130.12,129.99,0.05208265]
[1740731780324,0.05823757,130.01,129.99,0.05208265]
[1740731780714,190.0,130.11,129.88,140.88932551]
[1740731780918,0.05461882,130.01,129.99,0.05159282]
[1740731781326,7.6971,130.06,129.99,7.7011]
[1740731781527,0.05622283,130.01,129.99,0.05565869]
[1740731781825,7.6971,130.06,129.99,7.701]
[1740731782025,0.05123546,130.01,129.88,140.88932551]
[1740731782228,190.0,130.11,129.99,0.0586367]
[1740731782422,7.6984,130.04,129.88,140.88932551]
[1740731782614,190.0,130.11,129.88,140.88932551]
[1740731782615,3.02e-05,129.96,129.88,144.72932551]
[1740731782820,3.02e-05,129.96,129.88,140.88932551]
[1740731783025,7.6977,130.05,129.88,144.72932551]
[1740731783223,190.0,130.11,129.88,140.88932551]
[1740731783626,7.6963,130.08,129.88,140.88932551]
[1740731783824,7.435e-05,130.01,129.98,0.05449267]
[1740731784225,190.178,130.14,129.89,16.80283931]
[1740731784527,190.178,130.14,129.9,1.53964588]
[1740731785026,0.05489912,130.03,130.02,7.6994]
[1740731785225,190.178,130.14,130.02,7.6994]
[1740731785426,0.05662552,130.04,130.01,0.048971]
[1740731785628,190.178,130.14,129.9,140.88908843]
[1740731785629,7.6962,130.08,130.03,7.6984]
[1740731785824,0.05599742,130.04,130.01,0.05864231]
[1740731786025,190.178,130.14,129.91,154.76074255]
[1740731786426,1.38733545,130.13,129.91,154.76074255]
[1740731786728,7.699,130.03,129.91,139.34944255]
[1740731786935,190.0,130.12,129.91,139.34944255]
[1740731787125,0.05480942,129.98,129.96,0.05887905]
[1740731787330,7.7,130.01,129.96,7.7024]
[1740731787526,190.0,130.09,129.9,1.53964588]
[1740731787739,0.05501272,129.98,129.96,0.05160736]
[1740731787933,213.05,130.09,129.9,140.88908843]
[1740731788134,213.05,130.09,129.96,0.05647888]
[1740731788536,213.05,130.09,129.9,140.88908843]
[1740731788537,190.0,130.09,129.9,140.88908843]
[1740731788738,190.0,130.13,129.9,140.88908843]
[1740731789137,0.05884493,130.03,130.0,0.05606425]
[1740731789638,23.05,130.12,129.9,140.88908843]
[1740731789935,0.0519771,130.03,130.0,0.05808136]
[1740731790238,7.6952,130.08,130.02,7.6994]
[1740731790534,0.05376252,130.03,130.0,0.05636887]
[1740731790740,0.178,130.14,129.91,140.88896991]
[1740731791035,0.05564533,130.03,130.01,7.6988]
[1740731791237,0.05564533,130.03,130.0,0.0529829]
[1740731792730,7.75364533,130.03,130.0,0.0529829]
[1740731792936,0.05564533,130.03,130.0,0.0529829]
[1740731794836,7.6958,130.07,130.0,0.0529829]
[1740731795036,190.0,130.13,130.0,0.0529829]
[1740731795340,190.0,130.13,130.03,7.6975]
[1740731795341,7.6958,130.07,130.03,7.6975]
[1740731795840,190.0,130.13,129.92,15.4087]
[1740731796030,190.0,130.13,130.03,7.6977]